bitfinex/quotes_ETHUSD_20251218
["timestamp","ask_amount","ask_price","bid_price","bid_amount"]
[1766076056469,1.34390915,2956.7,2956.0,1.7121]
[1766076056983,4.4990299,2956.8,2956.1,1.7121]
[1766076056984,0.46438023,2956.8,2956.1,1.7121]
[1766076057340,1.1169,2956.7,2955.8,2.2591]
[1766076058191,7.88142682,2956.6,2955.8,1.7121]
[1766076058349,4.49916341,2956.6,2955.9,0.547]
[1766076058549,0.44991634,2956.5,2955.9,0.547]
[1766076059093,0.44991634,2956.5,2956.0,0.001]
[1766076059506,1.1169,2956.7,2956.0,0.001]
[1766076060035,6.76452682,2956.6,2956.0,0.001]
[1766076060263,1.1169,2956.5,2956.0,0.001]
[1766076060419,0.46438023,2956.5,2955.6,2.2591]
[1766076060612,0.46438023,2956.5,2955.5,0.001]
[1766076060613,1.1169,2956.3,2955.5,0.001]
[1766076060810,1.1169,2956.3,2955.2,2.2581]
[1766076061148,1.1169,2956.3,2955.2,2.3494]
[1766076061358,1.1119,2956.0,2954.5,2.9611]
[1766076061646,1.1119,2955.8,2954.7,1.8034]
[1766076062021,6.76658658,2955.7,2954.7,1.8034]
[1766076062221,1.1119,2955.6,2954.7,1.8034]
[1766076062619,1.1119,2955.6,2954.6,0.547]
[1766076062620,0.546,2955.6,2954.6,0.547]
[1766076062816,1.1119,2955.5,2954.4,0.001]
[1766076063018,1.1111,2955.3,2954.4,0.001]
[1766076063219,1.01138023,2955.2,2953.9,1.8034]
[1766076063458,0.21222802,2955.4,2954.1,1.8034]
[1766076063752,9.20628033,2955.6,2954.4,1.8034]
[1766076063910,0.405504,2955.5,2954.3,0.547]
[1766076064112,0.405504,2955.2,2954.1,1.8034]
[1766076064420,0.46438023,2955.1,2953.6,1.8034]
[1766076064620,0.405504,2955.0,2953.6,2.3504]
[1766076064940,0.405504,2955.0,2953.6,0.89781]
[1766076065140,1.1119,2954.6,2953.6,0.547]
[1766076065341,1.1119,2954.4,2953.6,0.547]
[1766076066045,1.1119,2954.4,2952.7,1.1577]
[1766076066046,1.1119,2954.2,2952.7,1.1577]
[1766076066213,1.1119,2954.0,2952.9,1.8034]
[1766076066542,1.1119,2954.0,2953.0,2.15421]
[1766076066543,1.6589,2954.0,2953.0,2.15421]
[1766076066750,1.1119,2953.9,2953.0,2.15421]
[1766076067120,1.1119,2953.9,2953.0,0.35081]
[1766076067323,1.1119,2953.8,2952.8,0.547]
[1766076067523,1.1119,2953.8,2953.2,0.001]
[1766076067849,1.1119,2953.8,2952.8,0.547]
[1766076068031,1.1119,2953.8,2952.4,2.3504]
[1766076068344,1.1119,2953.0,2952.3,0.001]
[1766076069829,1.1119,2953.0,2952.0,0.001]
[1766076070143,1.1119,2953.0,2951.6,1.1577]
[1766076070144,1.1119,2952.8,2951.6,1.1577]
[1766076070336,1.6589,2952.8,2951.9,1.1577]
[1766076070532,1.6589,2952.8,2952.0,1.8034]
[1766076070845,5.04555056,2952.8,2952.0,1.8034]
[1766076071034,1.1119,2952.7,2952.0,1.8034]
[1766076071554,1.1119,2952.7,2951.7,1.8034]
[1766076072647,1.0925,2952.6,2951.7,1.8034]
[1766076073848,1.0925,2952.6,2951.7,5.19126619]
[1766076074014,0.46438023,2953.2,2952.2,1.8517]
[1766076074218,0.547,2953.3,2952.4,1.8517]
[1766076074514,1.0925,2953.1,2952.3,0.18517]
[1766076074736,1.0925,2953.1,2952.1,0.547]
[1766076075440,1.0925,2953.1,2952.2,1.8517]
[1766076075751,1.6385,2953.1,2952.2,1.8517]
[1766076075949,1.6385,2953.1,2952.4,0.001]
[1766076076447,1.0925,2953.1,2952.4,0.001]
[1766076076948,2.13279536,2953.1,2952.4,0.001]
[1766076077352,0.46438023,2953.0,2952.4,0.001]
[1766076077830,1.0925,2952.9,2951.9,1.8517]
[1766076078467,3.38661609,2952.8,2951.9,1.8517]
[1766076078650,1.0925,2952.7,2951.9,1.8517]
[1766076078857,1.6385,2952.7,2951.9,1.8517]
[1766076079435,1.0925,2952.6,2951.5,0.001]
[1766076079636,1.0925,2952.6,2951.5,1.8527]
[1766076080537,1.0925,2952.4,2951.5,1.8527]
[1766076080751,1.0925,2952.3,2951.5,1.8527]
[1766076081255,1.6385,2952.3,2951.5,1.8527]
[1766076081446,1.0925,2952.3,2951.5,1.8527]
[1766076082769,1.33264204,2952.4,2951.5,1.8527]
[1766076082970,0.546,2952.7,2951.5,1.7259]
[1766076083268,1.0925,2952.6,2951.5,0.547]
[1766076083473,1.0925,2952.4,2951.5,0.547]
[1766076084038,1.0925,2952.4,2951.5,0.001]
[1766076084337,0.546,2952.3,2951.5,1.8527]
[1766076084562,1.6385,2952.3,2951.5,1.8527]
[1766076084751,0.405504,2952.9,2951.5,1.8527]
[1766076084752,1.0925,2953.1,2951.8,1.1789]
[1766076085047,1.0925,2953.1,2952.3,1.8517]
[1766076085244,1.6385,2953.1,2952.3,1.8517]
[1766076086486,1.0925,2953.0,2951.6,2.31608023]
[1766076086781,1.0925,2953.3,2952.1,1.1789]
[1766076086934,1.55688023,2953.2,2952.2,1.8517]
[1766076087763,1.0925,2953.1,2952.2,1.8517]
[1766076087951,1.0925,2953.1,2951.8,1.8517]
[1766076088151,1.0925,2953.1,2951.9,0.29776295]
[1766076088536,1.0925,2953.1,2951.9,2.14946295]
[1766076088939,1.0925,2952.9,2951.9,2.14946295]
[1766076089139,1.0925,2952.8,2951.9,2.14946295]
[1766076090454,0.86816166,2952.8,2951.9,2.14946295]
[1766076091242,7.2533666,2952.8,2951.9,2.14946295]
[1766076091442,0.86988423,2952.7,2951.5,0.001]
[1766076092650,0.405504,2952.4,2951.5,0.001]
[1766076092850,1.0925,2952.2,2951.5,0.001]
[1766076093071,1.0925,2952.1,2951.5,0.001]
[1766076093277,0.84131605,2952.1,2951.5,0.001]
[1766076093578,1.0925,2952.0,2951.5,0.001]
[1766076093751,1.0925,2952.0,2951.2,0.001]
[1766076093947,1.0925,2952.0,2951.2,1.8527]
[1766076095368,1.0925,2952.0,2951.2,0.001]
[1766076095556,1.0925,2951.9,2951.2,0.001]
[1766076095885,1.0925,2951.8,2951.2,0.001]
[1766076096974,3.38787817,2951.7,2951.1,0.001]
[1766076097175,1.0925,2951.6,2951.0,0.001]
[1766076097359,1.0925,2951.6,2950.6,3.0306]
[1766076097556,1.0925,2951.6,2950.6,1.8517]
[1766076097884,1.0925,2951.4,2950.6,1.8517]
[1766076098956,3.38826006,2951.4,2950.4,0.547]
[1766076099151,1.0925,2951.3,2950.4,0.547]
[1766076099581,1.01038023,2951.7,2950.7,1.1789]
[1766076099582,0.546,2951.7,2950.7,1.1789]
[1766076099791,0.546,2951.7,2951.0,1.8517]
[1766076100090,1.0925,2951.6,2950.5,3.0306]
[1766076100264,1.14531411,2951.7,2950.8,1.1789]
[1766076100596,0.59931411,2951.7,2951.0,1.8517]
[1766076100774,0.546,2951.8,2951.0,1.8517]
[1766076101288,1.6385,2951.8,2951.0,1.8517]
[1766076101489,0.46438023,2951.7,2950.8,0.546]
[1766076101655,1.0925,2951.6,2950.4,2.3987]
[1766076101855,1.0925,2951.6,2950.4,2.86308023]
[1766076102054,1.0925,2951.6,2950.6,3.38912437]
[1766076102260,1.0925,2951.6,2950.7,5.24071458]
[1766076102576,0.002,2952.4,2951.2,1.8848]
[1766076102761,1.1757,2952.3,2951.5,3.0352]
[1766076103092,1.1757,2952.2,2951.5,1.8848]
[1766076103292,1.1757,2952.1,2951.2,0.546]
[1766076103460,1.1757,2952.0,2951.2,0.546]
[1766076103657,0.546,2952.0,2950.9,0.546]
[1766076103862,1.36062824,2952.2,2951.4,1.8848]
[1766076104061,0.548,2952.4,2951.6,1.8848]
[1766076104062,0.002,2952.4,2951.6,1.8848]
[1766076104261,0.002,2952.8,2951.9,1.1504]
[1766076104588,0.002,2952.8,2952.3,1.8848]
[1766076104771,0.002,2952.8,2952.3,2.4308]
[1766076105162,0.002,2952.8,2952.4,1.8848]
[1766076106000,0.002,2952.8,2952.3,0.546]
[1766076107765,0.002,2952.8,2952.5,1.8848]
[1766076108160,1.1777,2953.6,2952.7,1.8848]
[1766076108365,0.002,2953.6,2953.0,1.8848]
[1766076108675,0.002,2953.9,2953.3,1.8848]
[1766076109163,1.1757,2953.8,2952.4,2.34918023]
[1766076109363,1.1757,2953.8,2952.4,1.8848]
[1766076109364,0.002,2952.8,2952.4,1.8848]
[1766076109562,0.002,2952.8,2952.2,0.546]
[1766076110474,1.1777,2952.8,2952.2,0.546]
[1766076110879,1.1777,2952.8,2951.8,2.34918023]
[1766076111104,1.1777,2952.8,2951.9,1.8848]
[1766076111398,1.1777,2952.8,2951.9,1.20771234]
[1766076111695,1.1777,2952.8,2952.0,1.8848]
[1766076112489,1.1769,2952.8,2952.0,1.8848]
[1766076112880,0.0012,2952.8,2952.3,1.8848]
[1766076113491,4.5613988,2953.6,2952.5,1.1504]
[1766076113695,1.1757,2953.5,2952.6,1.8848]
[1766076113874,0.84930976,2953.4,2952.6,1.8848]
[1766076114078,2.02500976,2953.4,2952.6,1.8848]
[1766076114280,0.84930976,2953.4,2952.6,1.8848]
[1766076114474,1.1757,2953.3,2952.6,1.8848]
[1766076114675,0.84930976,2953.4,2952.1,1.8848]
[1766076114676,1.1757,2953.1,2952.1,1.8848]
[1766076114899,1.1757,2953.0,2951.8,0.546]
[1766076115101,1.1757,2952.7,2951.1,1.1504]
[1766076115307,1.1757,2952.7,2951.0,0.001]
[1766076115308,6.77414984,2952.4,2951.2,3.5812]
[1766076115519,1.1757,2952.3,2951.2,3.5812]
[1766076115745,1.1757,2952.3,2951.3,1.8848]
[1766076116023,0.546,2952.6,2951.7,1.8848]
[1766076116024,3.3870204,2952.5,2951.7,1.8848]
[1766076116212,0.73198663,2952.4,2951.7,1.8848]
[1766076116726,1.90768663,2952.4,2951.7,1.8848]
[1766076118733,5.29487294,2952.4,2951.7,1.8848]
[1766076119017,1.90768663,2952.4,2951.7,1.8848]
[1766076119228,5.29478272,2952.4,2951.7,1.8848]
[1766076119714,0.91461273,2952.3,2951.3,1.8848]
[1766076119885,1.1757,2952.2,2951.3,1.8848]
[1766076120317,1.1757,2952.2,2951.4,1.8848]
[1766076120534,1.1757,2952.2,2951.5,1.8848]
[1766076120735,2.06215263,2952.2,2951.5,1.8848]
[1766076121421,0.46438023,2952.7,2951.9,1.8379]
[1766076121636,0.002,2952.8,2952.0,1.0841]
[1766076121790,3.3856239,2953.7,2952.6,1.0841]
[1766076121986,3.3856239,2953.7,2952.1,0.12802348]
[1766076121987,0.6773014,2953.7,2952.9,2.922]
[1766076122187,0.6773014,2953.7,2952.9,1.8379]
[1766076122426,0.002,2952.8,2952.5,1.8379]
[1766076122637,0.002,2952.8,2952.1,1.8379]
[1766076122929,1.55858023,2953.4,2952.3,1.8379]
[1766076123113,0.49444244,2953.3,2952.5,1.8379]
[1766076123729,1.0942,2953.2,2952.5,1.8379]
[1766076123925,0.95882267,2953.3,2952.5,1.8379]
[1766076124130,0.49444244,2953.3,2952.6,1.8379]
[1766076124998,0.46438023,2953.1,2952.4,0.546]
[1766076125313,4.34489625,2953.3,2952.6,1.8379]
[1766076125629,8.82516983,2953.3,2952.6,1.8379]
[1766076126007,5.43909625,2953.3,2952.6,1.8379]
[1766076127627,2.05302267,2953.3,2952.6,1.8379]
[1766076127816,3.88049346,2953.3,2952.6,1.8379]
[1766076128026,3.88049346,2953.3,2952.4,0.546]
[1766076128027,12.53225019,2954.8,2952.9,1.0841]
[1766076128331,0.46438023,2953.7,2953.0,1.8379]
[1766076128808,0.46438023,2953.7,2952.0,1.8379]
[1766076128809,1.0942,2953.5,2952.0,1.8379]
[1766076129011,0.46438023,2953.7,2952.7,1.8379]
[1766076129312,0.46438023,2953.5,2952.8,1.8379]
[1766076130028,0.002,2953.9,2953.2,1.0841]
[1766076130233,0.46438023,2953.8,2953.3,1.8379]
[1766076130412,0.002,2953.9,2953.3,1.8379]
[1766076130602,0.002,2953.9,2953.4,1.0841]
[1766076130803,1.0942,2954.5,2953.3,0.546]
[1766076131028,1.6422,2954.5,2953.4,1.8379]
[1766076131336,3.38480441,2954.4,2953.6,1.8379]
[1766076131531,4.48091775,2954.5,2953.3,3.93200573]
[1766076131732,4.48091775,2954.5,2953.7,1.8379]
[1766076131733,0.46438023,2954.4,2953.7,1.8379]
[1766076131921,1.55858023,2954.4,2953.7,1.8379]
[1766076133032,0.46438023,2954.4,2953.7,1.8379]
[1766076133837,3.38478859,2954.4,2953.7,1.8379]
[1766076134506,0.46438023,2954.4,2953.7,1.87175584]
[1766076134708,0.46438023,2954.4,2953.7,1.13095584]
[1766076134940,0.46438023,2954.4,2953.8,1.826]
[1766076135145,0.002,2954.5,2953.8,1.826]
[1766076135319,1.60908023,2954.4,2953.4,1.826]
[1766076135520,1.1447,2954.3,2953.4,1.826]
[1766076135721,3.38501117,2954.2,2953.4,1.826]
[1766076135920,4.52963907,2954.3,2953.4,1.826]
[1766076136104,4.52963907,2954.3,2953.3,0.546]
[1766076136313,4.52963907,2954.3,2953.5,1.826]
[1766076136509,1.1447,2954.2,2953.5,1.826]
[1766076136938,3.38493907,2954.3,2953.6,1.826]
[1766076137343,3.38493907,2954.3,2953.4,0.39321514]
[1766076137344,0.002,2954.5,2953.9,1.826]
[1766076137649,0.002,2954.5,2953.4,7.1650005]
[1766076137650,0.002,2955.1,2954.4,1.826]
[1766076137822,0.34059299,2955.1,2954.5,1.826]
[1766076138153,0.002,2955.1,2954.4,3.38477662]
[1766076138357,0.002,2955.6,2954.7,1.826]
[1766076138553,0.002,2955.6,2954.3,2.9231]
[1766076138871,0.407504,2955.6,2954.4,0.545]
[1766076139021,0.407504,2955.6,2954.4,2.371]
[1766076139361,0.407504,2955.6,2953.8,1.826]
[1766076139661,4.52868023,2955.1,2953.9,1.826]
[1766076139859,1.1447,2954.9,2953.9,1.826]
[1766076140728,1.1447,2954.9,2953.9,1.0971]
[1766076140951,1.1447,2954.9,2954.0,1.826]
[1766076142003,1.1447,2954.7,2954.0,1.826]
[1766076142319,0.45290238,2954.6,2954.0,1.826]
[1766076143356,0.45290238,2954.6,2953.9,1.826]
[1766076144047,3.83751327,2954.6,2953.9,1.826]
[1766076145021,3.83751327,2954.6,2954.0,0.001]
[1766076145422,4.98221327,2954.6,2954.0,0.001]
[1766076145819,0.89116654,2954.5,2954.0,0.001]
[1766076146052,1.1447,2954.4,2954.0,0.001]
[1766076146254,0.89116654,2954.5,2954.0,0.001]
[1766076146557,3.83754023,2954.6,2954.0,0.001]
[1766076146739,1.1447,2954.5,2954.0,0.001]
[1766076146941,1.1447,2954.3,2953.0,1.826]
[1766076147147,1.1447,2954.3,2953.2,1.826]
[1766076147570,1.1447,2954.3,2953.1,0.545]
[1766076147571,0.45290238,2954.6,2953.6,3.38567277]
[1766076147733,1.00938023,2954.8,2953.8,2.9231]
[1766076147925,1.00938023,2954.8,2953.7,4.26904879]
[1766076148148,0.46438023,2954.8,2953.8,2.9231]
[1766076148462,0.46438023,2954.9,2953.7,7.65463297]
[1766076148624,0.46438023,2954.9,2954.0,1.0971]
[1766076148826,0.46438023,2954.9,2954.3,1.826]
[1766076149688,0.46438023,2955.0,2954.4,1.826]
[1766076149990,0.002,2955.1,2954.6,1.826]
[1766076151191,0.46638023,2955.1,2954.6,1.826]
[1766076151492,1.1447,2954.9,2954.1,2.371]
[1766076151788,1.1447,2954.9,2954.1,1.826]
[1766076152165,3.38432381,2954.8,2954.1,1.826]
[1766076152355,3.38426935,2954.9,2954.1,1.826]
[1766076152560,1.1447,2954.8,2954.1,1.826]
[1766076153461,3.92915919,2955.0,2954.2,1.0971]
[1766076153792,3.92915919,2955.0,2954.3,1.826]
[1766076153994,0.545,2955.0,2954.3,1.826]
[1766076154289,3.92910337,2955.0,2954.3,1.826]
[1766076154461,0.46438023,2955.0,2954.3,1.826]
[1766076154864,0.46438023,2955.0,2954.0,0.001]
[1766076154865,1.1447,2954.9,2954.0,1.827]
[1766076155488,1.1447,2954.9,2954.1,1.826]
[1766076155698,1.60908023,2955.0,2954.2,1.826]
[1766076155904,1.1447,2954.9,2954.0,0.001]
[1766076156111,1.1447,2954.8,2954.0,0.001]
[1766076156260,1.1447,2954.6,2953.4,1.826]
[1766076156597,1.1447,2954.4,2953.4,1.826]
[1766076157608,1.1447,2954.3,2953.4,1.826]
[1766076157915,1.1447,2954.3,2953.1,0.545]
[1766076158212,1.1447,2954.1,2953.1,0.545]
[1766076158372,1.1447,2953.9,2953.1,0.545]
[1766076158570,4.53008738,2953.9,2953.1,0.545]
[1766076158808,4.53008738,2953.9,2953.1,2.371]
[1766076159107,1.1447,2953.8,2953.1,2.371]
[1766076159278,1.1447,2953.7,2953.1,2.371]
[1766076159484,1.1447,2953.7,2952.8,1.827]
[1766076160599,3.3856988,2953.6,2952.8,1.827]
[1766076160811,4.5303988,2953.6,2952.8,1.827]
[1766076161200,4.53033537,2953.7,2952.9,1.826]
[1766076161387,1.1447,2953.6,2952.9,1.826]
[1766076161794,1.1447,2953.6,2952.8,0.001]
[1766076161992,1.1439,2953.6,2952.8,0.001]
[1766076162317,0.545,2953.5,2952.5,0.001]
[1766076162517,0.405504,2953.4,2952.5,0.001]
[1766076162675,6.77208546,2953.3,2952.5,0.001]
[1766076163001,6.77208546,2953.3,2952.2,0.001]
[1766076163002,1.18213918,2953.2,2952.2,0.001]
[1766076163189,0.545,2953.1,2952.2,0.001]
[1766076163392,0.545,2953.1,2952.3,1.8599]
[1766076163813,0.405504,2953.0,2951.8,0.545]
[1766076163983,0.405504,2953.0,2951.8,2.4049]
[1766076163984,1.0963,2952.9,2951.8,2.4049]
[1766076164314,1.0963,2952.9,2951.9,1.8599]
[1766076164733,3.38661609,2952.8,2951.9,1.8599]
[1766076164940,1.0963,2952.8,2951.9,1.8599]
[1766076166731,4.48296911,2952.8,2951.9,1.8599]
[1766076167033,1.0963,2952.7,2951.9,1.8599]
[1766076167232,1.54459691,2952.7,2951.9,1.8599]
[1766076169238,3.79196752,2953.0,2952.1,1.8599]
[1766076169405,1.0963,2953.3,2952.3,1.1194]
[1766076169606,1.0963,2953.3,2952.2,0.545]
[1766076169607,1.6413,2953.3,2952.5,1.8599]
[1766076170511,1.0963,2953.3,2952.5,1.8599]
[1766076170713,0.46438023,2953.4,2952.8,1.8599]
[1766076170912,3.85031943,2953.4,2952.8,1.8599]
[1766076171538,1.0963,2953.3,2952.6,0.545]
[1766076171742,0.46438023,2953.4,2952.7,1.8599]
[1766076172037,3.85032684,2953.4,2952.8,1.8599]
[1766076173157,0.46438023,2953.4,2952.8,1.8599]
[1766076173362,4.94662039,2953.4,2952.8,1.8599]
[1766076174064,4.94664585,2953.4,2952.8,1.8599]
[1766076174243,1.56068023,2953.4,2952.8,1.8599]
[1766076174458,8.72426228,2952.9,2951.7,1.8599]
[1766076174623,8.72426228,2952.5,2951.6,0.001]
[1766076174829,1.0963,2952.3,2951.6,0.001]
[1766076175358,1.0963,2952.1,2951.6,0.001]
[1766076175532,1.0963,2952.1,2951.4,0.001]
[1766076175533,1.0963,2952.0,2951.4,0.001]
[1766076181388,7.6496,2952.8,2951.8,1.7079]
[1766076181598,6.47,2952.8,2952.3,1.7079]
[1766076181806,1.1796,2953.1,2952.4,2.2529]
[1766076182086,1.1796,2953.1,2952.5,1.7079]
[1766076182461,1.1796,2953.1,2952.4,0.545]
[1766076182795,1.64398023,2953.1,2952.4,2.2529]
[1766076185280,1.1796,2953.1,2952.5,1.7079]
[1766076185482,1.1816,2953.4,2952.6,1.7079]
[1766076185669,1.1816,2953.4,2952.8,1.7079]
[1766076185670,0.002,2953.4,2952.8,1.7079]
[1766076186165,0.46638023,2953.4,2952.8,1.7079]
[1766076186486,1.1796,2953.3,2952.5,2.04081]
[1766076186659,1.1788,2953.3,2952.5,2.04081]
[1766076186861,1.1788,2953.3,2952.6,1.966481]
[1766076187883,0.46638023,2953.4,2952.7,1.7079]
[1766076188082,0.002,2953.4,2952.7,1.7079]
[1766076188266,0.46638023,2953.4,2952.7,1.7079]
[1766076188663,0.002,2953.4,2952.7,1.7079]
[1766076188867,0.002,2953.4,2953.0,1.7079]
[1766076189178,1.64398023,2953.8,2953.1,1.7079]
[1766076189575,1.1796,2953.8,2953.1,1.7079]
[1766076189776,1.7246,2954.2,2953.4,1.7079]
[1766076189975,1.1796,2954.1,2953.2,0.545]
[1766076190199,1.1796,2953.9,2952.9,0.545]
[1766076190500,1.1796,2953.9,2952.9,2.2529]
[1766076190936,1.1796,2953.9,2952.8,0.3042681]
[1766076191104,1.64398023,2953.6,2952.7,1.7079]
[1766076191403,1.1796,2953.6,2952.9,1.7079]
[1766076191603,1.1796,2953.6,2952.6,0.545]
[1766076191604,1.1796,2953.5,2952.6,0.545]
[1766076192602,1.1796,2953.5,2952.7,1.8522673]
[1766076192803,1.114,2953.5,2952.8,1.8184]
[1766076193303,1.114,2953.4,2952.5,0.001]
[1766076193501,1.659,2953.4,2952.5,1.8194]
[1766076193702,1.114,2953.3,2952.5,2.9947]
[1766076194008,1.114,2953.3,2952.5,1.1763]
[1766076194205,1.114,2953.3,2952.6,1.8184]
[1766076195118,4.50004548,2953.3,2952.6,1.8184]
[1766076195424,1.114,2953.2,2952.6,1.8184]
[1766076195616,0.7886091,2953.1,2952.6,1.8184]
[1766076196031,1.114,2953.0,2952.5,0.001]
[1766076196327,1.114,2953.0,2952.1,0.546]
[1766076196532,0.545,2953.0,2952.1,2.3644]
[1766076196834,1.114,2952.7,2952.1,0.001]
[1766076197295,4.50080402,2952.7,2952.1,0.001]
[1766076197501,0.7886091,2953.1,2952.5,1.8184]
[1766076197699,0.002,2953.8,2952.7,1.8184]
[1766076198023,0.46438023,2953.6,2952.9,1.8184]
[1766076198226,1.57838023,2953.6,2952.9,1.8184]
[1766076198528,1.114,2953.5,2952.9,1.8184]
[1766076198895,4.5015121,2953.8,2953.0,1.7203]
[1766076199121,4.501545,2953.8,2953.1,1.8184]
[1766076199310,1.114,2953.7,2953.1,1.8184]
[1766076199796,0.002,2953.8,2953.1,1.8184]
[1766076199996,1.114,2953.7,2953.1,1.8184]
[1766076200329,1.90270571,2953.7,2953.0,0.545]
[1766076200724,0.002,2953.8,2953.0,0.545]
[1766076201027,0.002,2953.5,2953.4,1.8184]
[1766076201219,0.002,2953.8,2953.4,1.8184]
[1766076201728,0.002,2954.4,2953.7,1.1753]
[1766076201930,0.002,2954.4,2953.8,1.8184]
[1766076202128,0.002,2954.6,2954.1,1.8184]
[1766076202817,3.38658383,2954.6,2954.1,1.8184]
[1766076203021,4.50058383,2954.6,2953.9,0.545]
[1766076203217,1.114,2954.5,2953.8,1.8184]
[1766076203417,1.114,2954.4,2953.8,1.8184]
[1766076204228,0.44987317,2954.3,2953.5,2.9937]
[1766076204436,1.56387317,2954.3,2953.6,1.8184]
[1766076204728,6.76946332,2954.5,2953.6,1.8184]
[1766076205027,1.114,2954.4,2953.3,0.545]
[1766076205210,3.38512575,2954.1,2953.3,0.545]
[1766076205409,4.49912575,2954.1,2953.3,2.3634]
[1766076206230,6.7702515,2954.1,2953.3,0.545]
[1766076206418,1.114,2953.9,2952.9,1.8184]
[1766076206603,1.114,2953.9,2952.9,2.3634]
[1766076206805,1.114,2953.8,2952.9,2.3634]
[1766076207004,1.114,2953.8,2952.9,0.545]
[1766076207229,3.38555429,2953.8,2952.9,0.545]
[1766076207533,0.39305543,2953.7,2953.0,1.8184]
[1766076207707,1.50705543,2953.7,2953.0,1.8184]
[1766076207907,0.46438023,2953.8,2953.1,1.8184]
[1766076208930,1.114,2953.9,2953.1,1.8184]
[1766076209127,0.67702515,2954.0,2953.2,1.1753]
[1766076209300,0.002,2954.1,2953.4,1.8184]
[1766076209500,0.46638023,2954.1,2953.4,1.8184]
[1766076209766,3.85151368,2954.1,2953.4,1.8184]
[1766076209975,1.02736256,2953.3,2953.1,1.7203]
[1766076210139,0.002,2954.1,2953.2,1.1753]
[1766076210335,0.002,2954.1,2953.4,1.1753]
[1766076210877,0.46438023,2954.0,2953.1,0.545]
[1766076211174,1.114,2954.0,2953.1,0.545]
[1766076211386,0.002,2954.1,2953.2,3.38610599]
[1766076211533,0.002,2954.1,2953.2,4.13750599]
[1766076211739,0.545,2954.5,2953.3,0.7514]
[1766076211939,1.41972405,2954.5,2953.5,1.8184]
[1766076212138,1.41972405,2954.5,2953.6,1.8184]
[1766076212347,1.41972405,2954.5,2953.4,0.75236634]
[1766076212575,2.24698023,2954.4,2953.3,0.7527]
[1766076213235,0.46438023,2954.4,2953.5,0.7527]
[1766076213452,0.46438023,2954.5,2953.6,0.754]
[1766076214052,1.7826,2954.3,2953.5,0.545]
[1766076214252,0.46438023,2954.2,2953.6,0.73168562]
[1766076214559,1.114,2954.2,2953.6,0.73168562]
[1766076215888,0.46438023,2954.5,2952.6,0.85064929]
[1766076215889,0.46438023,2954.0,2952.6,0.85064929]
[1766076216088,2.8966,2953.7,2952.9,0.545]
[1766076216293,1.7826,2953.7,2952.9,2.3634]
[1766076216486,0.46438023,2953.6,2952.9,0.78134]
[1766076216789,1.114,2953.5,2952.9,0.78134]
[1766076217502,1.114,2953.5,2952.9,4.16783324]
[1766076217652,1.114,2953.5,2952.9,0.78134]
[1766076217997,0.46438023,2953.6,2952.9,5.98623848]
[1766076218166,0.46438023,2953.6,2953.0,0.59862385]
[1766076218550,0.46438023,2953.6,2952.5,0.001]
[1766076218551,1.114,2953.3,2952.5,0.001]
[1766076218790,1.114,2953.7,2952.7,3.38664436]
[1766076219090,0.46438023,2953.6,2952.6,3.93184396]
[1766076219384,1.114,2953.7,2952.6,3.93184396]
[1766076219588,1.114,2953.7,2952.8,1.8184]
[1766076219773,1.114,2953.9,2953.0,2.5799]
[1766076219952,1.114,2953.8,2953.1,0.545]
[1766076220371,0.46438023,2953.8,2952.6,1.8184]
[1766076220580,1.57838023,2953.6,2952.7,2.3634]
[1766076220883,1.57838023,2953.6,2952.9,1.8184]
[1766076221181,0.545,2953.7,2952.9,3.38650136]
[1766076221356,1.57838023,2953.6,2952.8,5.44129715]
[1766076221551,1.114,2953.5,2952.8,5.44129715]
[1766076221786,1.114,2953.5,2952.8,2.05474]
[1766076222084,1.114,2953.5,2952.9,0.59864503]
[1766076222297,1.114,2953.5,2952.8,5.44134549]
[1766076224363,1.114,2953.5,2952.9,1.7935]
[1766076224887,1.114,2953.5,2953.0,0.001]
[1766076225203,1.1015,2953.4,2952.7,0.545]
[1766076225402,2.8866,2953.1,2952.4,0.001]
[1766076225570,2.11088023,2953.4,2952.5,1.7945]
[1766076225768,2.11088023,2953.4,2952.6,2.11514845]
[1766076225979,1.56588023,2953.3,2952.6,2.08128]
[1766076226163,1.1015,2953.2,2952.6,0.28778]
[1766076226371,1.7851,2953.2,2952.5,0.001]
[1766076226561,2.8866,2953.2,2952.5,0.001]
[1766076227085,2.8866,2953.2,2952.5,3.38788956]
[1766076227391,2.8866,2953.2,2952.5,0.001]
[1766076227892,1.1015,2953.1,2952.5,0.001]
[1766076228092,0.545,2953.4,2952.5,0.62748242]
[1766076228304,1.56588023,2953.3,2952.5,1.7945]
[1766076228535,0.46438023,2953.3,2952.5,0.001]
[1766076229029,1.1015,2953.0,2952.5,0.001]
[1766076229318,1.6465,2953.4,2952.5,0.001]
[1766076229529,2.11088023,2953.4,2952.5,5.18143856]
[1766076229684,2.50047825,2953.4,2952.5,5.18143856]
[1766076229887,1.49109802,2953.4,2952.6,0.03386845]
[1766076230088,1.56588023,2953.2,2952.5,0.001]
[1766076230319,1.56588023,2953.2,2952.5,1.7945]
[1766076232423,0.545,2953.3,2952.6,5.18029174]
[1766076233099,0.545,2953.3,2952.6,1.7935]
[1766076233697,1.6465,2953.3,2952.6,1.7935]
[1766076233903,1.56588023,2953.2,2952.5,0.001]